bitfinex-derivatives/quotes_ETHF0:USTF0_20240817
["timestamp","ask_amount","ask_price","bid_price","bid_amount"]
[1723900674320,1.43692,2609.4,2609.2,1.44131369]
[1723900674516,0.3513,2609.3,2609.2,1.44131369]
[1723900674816,0.3513,2609.3,2609.2,1.44134369]
[1723900674817,0.705,2609.3,2609.2,1.44134369]
[1723900675017,0.705,2609.3,2609.2,4.64914369]
[1723900676622,0.3694,2609.4,2609.2,4.64914369]
[1723900676623,0.3694,2609.4,2609.3,1.43696]
[1723900677511,0.3694,2609.4,2609.3,2.43076622]
[1723900677706,0.3694,2609.4,2609.3,1.43696]
[1723900679012,0.3694,2609.4,2609.3,2.43076622]
[1723900679513,0.3694,2609.4,2609.3,1.43696]
[1723900680627,0.3694,2609.4,2609.2,4.20592991]
[1723900680926,1.43696,2609.3,2609.2,3.21212369]
[1723900681724,5.26976,2609.3,2609.2,3.21212369]
[1723900682022,3.8328,2609.3,2609.2,3.21212369]
[1723900682323,1.43696,2609.3,2609.2,3.21212369]
[1723900682528,5.26976,2609.3,2609.2,3.21212369]
[1723900683824,0.3694,2609.4,2609.2,4.64914369]
[1723900683825,1.80634,2609.4,2609.2,4.64914369]
[1723900684029,1.43696,2609.3,2609.2,3.21212369]
[1723900684421,5.26976,2609.3,2609.2,3.21212369]
[1723900686230,5.26976,2609.3,2609.2,0.00432369]
[1723900687024,1.43707,2609.1,2609.0,0.00574889]
[1723900687527,5.26987,2609.1,2609.0,0.00574889]
[1723900688122,1.79924,2609.2,2609.0,0.00939957]
[1723900688422,0.3622,2609.2,2609.0,0.00939957]
[1723900688624,1.79925,2609.2,2609.0,0.00939957]
[1723900688833,1.43707,2609.1,2609.0,0.00939957]
[1723900689824,0.3622,2609.2,2609.0,0.00939957]
[1723900690024,0.3622,2609.2,2609.1,1.43707]
[1723900690427,0.3622,2609.2,2609.0,0.00939957]
[1723900690634,0.3622,2609.2,2609.1,1.43707]
[1723900690829,0.3622,2609.2,2609.0,1.44649957]
[1723900691026,1.79922,2609.2,2609.0,1.44649957]
[1723900691428,1.43707,2609.1,2609.0,0.00939957]
[1723900692828,5.26987,2609.1,2609.0,0.00939957]
[1723900693234,1.43707,2609.1,2609.0,0.00939957]
[1723900693826,5.26987,2609.1,2609.0,0.00939957]
[1723900694036,0.3622,2609.2,2609.1,1.43707]
[1723900694731,0.3539,2609.3,2609.2,1.43702]
[1723900694937,0.3694,2609.4,2609.3,1.43696]
[1723900695233,4.113,2609.6,2609.2,4.20160622]
[1723900695433,4.113,2609.6,2609.3,0.7498]
[1723900695838,4.113,2609.6,2609.4,1.43691]
[1723900696023,4.113,2609.6,2609.5,3.2078]
[1723900696229,4.113,2609.6,2609.5,4.64465]
[1723900696737,4.113,2609.6,2609.5,3.2078]
[1723900697730,4.113,2609.6,2609.5,4.64465]
[1723900698634,0.7196,2609.7,2609.6,1.4368]
[1723900699037,0.00297288,2609.8,2609.7,1.43674]
[1723900699533,0.00297288,2609.8,2609.7,5.26874]
[1723900700736,0.00297288,2609.8,2609.7,1.43674]
[1723900700945,0.00297288,2609.8,2609.6,1.43677]
[1723900701138,0.72997288,2609.8,2609.6,1.43677]
[1723900701339,0.72997288,2609.8,2609.7,1.43674]
[1723900702542,0.72997288,2609.8,2609.6,1.43677]
[1723900702734,0.3732,2609.7,2609.6,1.43677]
[1723900704636,0.3732,2609.7,2609.6,4.64457]
[1723900706034,0.72997288,2609.8,2609.7,1.43674]
[1723900707252,0.72997288,2609.8,2609.7,5.26874]
[1723900709334,0.72997288,2609.8,2609.7,1.43674]
[1723900709943,0.72997288,2609.8,2609.6,3.2078]
[1723900710343,0.72997288,2609.8,2609.6,4.20160622]
[1723900710851,0.72997288,2609.8,2609.7,1.43674]
[1723900711142,0.00297288,2609.8,2609.7,1.43674]
[1723900711542,0.00297288,2609.8,2609.7,2.43054622]
[1723900711741,0.00297288,2609.8,2609.7,1.43674]
[1723900712354,0.00297288,2609.8,2609.7,2.43054622]
[1723900713048,0.00297288,2609.8,2609.7,4.84286156]
[1723900713653,0.00297288,2609.8,2609.7,4.84285102]
[1723900714859,9.236e-05,2609.8,2609.7,7.1844887]
[1723900715844,9.236e-05,2609.8,2609.7,10.60852815]
[1723900716052,9.236e-05,2609.8,2609.7,10.61503336]
[1723900716247,9.236e-05,2609.8,2609.7,8.6212287]
[1723900716447,9.236e-05,2609.8,2609.7,14.44624199]
[1723900717153,9.236e-05,2609.8,2609.7,7.1844887]
[1723900717454,9.236e-05,2609.8,2609.7,8.67982221]
[1723900717654,9.236e-05,2609.8,2609.7,4.84782221]
[1723900718152,9.236e-05,2609.8,2609.7,2.93207351]
[1723900718354,9.236e-05,2609.8,2609.7,4.84773625]
[1723900720151,1.43677236,2609.8,2609.7,3.41099625]
[1723900720353,5.26877236,2609.8,2609.6,5.69999857]
[1723900720652,1.43685,2609.5,2609.3,0.99689502]
[1723900720856,1.43701,2609.2,2609.1,0.99689502]
[1723900721045,0.7047,2609.4,2609.0,1.00629459]
[1723900721046,1.43707,2609.1,2609.0,1.00629459]
[1723900721241,1.79077,2609.1,2609.0,0.00939957]
[1723900721446,15.26844,2609.1,2609.0,0.00939957]
[1723900721647,13.83137,2609.1,2609.0,0.00939957]
[1723900721855,5.62357,2609.1,2609.0,0.00939957]
[1723900722556,1.79077,2609.1,2609.0,0.00939957]
[1723900722944,0.3537,2609.1,2609.0,0.00939957]
[1723900723145,0.3537,2609.1,2609.0,1.44651957]
[1723900723344,0.3537,2609.1,2609.0,0.00939957]
[1723900724458,0.3537,2609.1,2609.0,1.44651957]
[1723900724663,0.3537,2609.1,2609.0,0.00939957]
[1723900725156,1.79077,2609.1,2609.0,0.00939957]
[1723900726054,0.3537,2609.1,2609.0,0.00939957]
[1723900726959,1.79077,2609.1,2609.0,0.00939957]
[1723900727460,0.7047,2609.4,2609.0,3.21719957]
[1723900727652,1.43698,2609.3,2609.0,3.21719957]
[1723900727848,0.7047,2609.4,2609.0,3.21719957]
[1723900728057,0.7047,2609.4,2609.3,3.2078]
[1723900728365,0.7047,2609.4,2609.3,4.64476]
[1723900731158,1.43676,2609.7,2609.3,8.47676]
[1723900731358,0.35799236,2609.8,2609.7,1.43674]
[1723900731762,9.236e-05,2609.8,2609.7,5.63014]
[1723900734163,1.43674,2609.7,2609.6,3.2078]
[1723900734368,0.7347,2609.7,2609.6,3.2078]
[1723900734562,0.7347,2609.7,2609.5,2.43372502]
[1723900735160,0.7347,2609.7,2609.6,1.43679]
[1723900735560,0.7347,2609.7,2609.6,5.64148502]
[1723900736159,9.236e-05,2609.8,2609.7,1.43674]
[1723900736469,9.236e-05,2609.8,2609.7,2.18764]
[1723900736768,9.236e-05,2609.8,2609.7,8.93210513]
[1723900738281,9.236e-05,2609.8,2609.7,7.93535709]
[1723900739286,1.43677236,2609.8,2609.7,0.99699386]
[1723900739583,9.236e-05,2609.8,2609.6,5.64158386]
[1723900739772,1.43678236,2609.8,2609.6,5.64158386]
[1723900740176,0.6945,2609.7,2609.6,5.64158386]
[1723900740378,0.6945,2609.7,2609.6,4.20479386]
[1723900740586,1.0383,2609.7,2609.6,4.20479386]
[1723900741385,1.43679,2609.6,2609.5,0.99699386]
[1723900741587,1.43679,2609.6,2609.3,0.99699386]
[1723900741588,1.43689,2609.5,2609.3,0.99699386]
[1723900741778,1.43689,2609.5,2609.2,5.64178386]
[1723900742082,1.43683,2609.6,2609.3,1.43696]
[1723900742290,1.43683,2609.6,2609.3,2.43395386]
[1723900742789,1.43683,2609.6,2609.3,0.99699386]
[1723900742974,1.0383,2609.7,2609.5,4.64462]
[1723900743179,2.47508,2609.7,2609.5,3.2078]
[1723900743374,1.43679,2609.6,2609.5,3.2078]
[1723900743574,1.43679,2609.6,2609.3,2.81102386]
[1723900743774,1.43679,2609.6,2609.4,1.4369]
[1723900743985,1.43679,2609.6,2609.4,2.43389386]
[1723900744387,1.43679,2609.6,2609.4,1.4369]
[1723900744787,1.43679,2609.6,2609.3,2.43391386]
[1723900746487,1.43679,2609.6,2609.3,0.99699386]
[1723900746690,1.43685,2609.5,2609.3,2.43393386]
[1723900746888,1.43683,2609.6,2609.3,2.43393386]
[1723900747087,1.43683,2609.6,2609.2,4.20479386]
[1723900747279,1.43693,2609.4,2609.2,5.64180386]
[1723900747479,1.43693,2609.4,2609.3,0.99699386]
[1723900747778,1.43687,2609.5,2609.2,5.64180386]
[1723900747978,1.43687,2609.5,2609.3,0.99699386]
[1723900749183,1.4369,2609.4,2609.3,0.99699386]
[1723900749385,1.43696,2609.3,2609.2,4.20498945]
[1723900749575,1.43694,2609.4,2609.2,4.20498945]
[1723900749786,1.43688,2609.5,2609.2,5.64198945]
[1723900750174,1.43682,2609.6,2609.3,2.43408945]
[1723900750480,1.0383,2609.7,2609.3,2.43408945]
[1723900750481,1.43686,2609.5,2609.3,2.43408945]
[1723900750686,1.43686,2609.5,2609.3,1.4369]
[1723900750885,1.43686,2609.5,2609.3,2.43408945]
[1723900751082,2.47506,2609.7,2609.2,4.20498945]
[1723900751288,1.43696,2609.3,2609.2,3.2078]
[1723900752777,1.43693,2609.4,2609.2,4.64481]
[1723900752983,1.43696,2609.3,2609.2,3.2078]
[1723900753579,1.43694,2609.4,2609.2,3.2078]
[1723900755493,1.43696,2609.3,2609.2,3.2078]
[1723900755989,1.43707,2609.1,2609.0,0.00939957]
[1723900756489,5.26987,2609.1,2609.0,0.00939957]
[1723900758185,10.26987,2609.1,2609.0,0.00939957]
[1723900760992,5.26987,2609.1,2609.0,0.00939957]
[1723900761585,1.43707,2609.1,2609.0,0.00939957]
[1723900761790,5.26987,2609.1,2609.0,0.00939957]
[1723900763494,1.43707,2609.1,2609.0,0.00939957]
[1723900766995,5.26987,2609.1,2609.0,0.00939957]
[1723900768791,6.70694,2609.1,2609.0,0.00939957]
[1723900769096,11.70694,2609.1,2609.0,0.00939957]
[1723900775099,6.70694,2609.1,2609.0,0.00939957]
[1723900777507,1.43735,2608.6,2608.5,0.3486]
[1723900778511,1.43735,2608.6,2608.5,0.35253265]
[1723900778904,1.43732,2608.7,2608.5,1.78993265]
[1723900779307,1.43735,2608.6,2608.5,0.35253265]
[1723900783413,8.33398,2609.3,2608.5,0.00393265]
[1723900783602,1.43703,2609.2,2608.7,3.2078]
[1723900783806,1.43722,2608.9,2608.7,3.2078]
[1723900784005,1.43723,2608.8,2608.7,3.2078]
[1723900785405,2.5412,2608.9,2608.7,4.64509]
[1723900785615,2.5412,2608.9,2608.7,3.2078]
[1723900785918,1.4372,2608.9,2608.7,3.2078]
[1723900786516,6.897,2609.3,2608.7,3.2078]
[1723900786716,6.897,2609.3,2608.8,1.43721]
[1723900786717,5.55011,2609.1,2608.8,1.43721]
[1723900786921,1.43715,2609.0,2608.7,5.64225945]
[1723900788219,1.43715,2609.0,2608.8,0.99718945]
[1723900788614,1.43715,2609.0,2608.7,5.64225945]
[1723900789015,1.43715,2609.0,2608.8,0.99718945]
[1723900790512,4.113,2609.4,2608.8,0.99718945]
[1723900790708,5.54993,2609.4,2609.1,1.43705]
[1723900790915,5.54993,2609.4,2609.3,3.2078]
[1723900791223,5.5499,2609.4,2609.3,3.2078]
[1723900791729,4.113,2609.4,2609.2,2.12721]
[1723900792020,1.43696,2609.3,2609.2,0.6902]
[1723900793017,6.763,2609.4,2609.0,4.20498945]
[1723900793221,1.43707,2609.1,2609.0,3.2078]
[1723900793427,8.19996,2609.4,2608.9,0.99718945]
[1723900793428,8.19996,2609.4,2608.9,0.99910419]
[1723900793628,1.79672,2609.0,2608.9,0.99910419]
[1723900793819,1.79672,2609.0,2608.8,0.99910419]
[1723900794216,1.79672,2609.0,2608.9,0.99910419]
[1723900794428,2.13952,2609.0,2608.9,0.99910419]
[1723900796013,0.3428,2609.0,2608.9,2.91561901]
[1723900796212,1.79729,2609.1,2608.9,3.41181837]
[1723900796408,1.79729,2609.1,2609.0,0.99956782]
[1723900796627,1.79729,2609.1,2609.0,1.37326782]
[1723900797323,1.43704,2609.2,2609.0,3.28970462]
[1723900797625,1.43704,2609.2,2609.0,1.37326782]
[1723900797820,0.7312,2609.3,2609.0,1.37326782]
[1723900798224,1.43703,2609.2,2609.1,0.99956782]
[1723900798416,1.43701,2609.2,2609.0,1.37326782]
[1723900798616,0.7312,2609.3,2609.0,0.3737]
[1723900798617,1.43707,2609.1,2609.0,0.3737]
[1723900798825,1.43707,2609.1,2608.9,0.99956782]
[1723900798826,1.78937,2609.1,2608.9,0.99956782]
[1723900799124,1.78937,2609.1,2609.0,0.99956782]
[1723900799721,1.43705,2609.2,2609.0,3.29077912]
[1723900800028,2.16818,2609.3,2609.1,0.99956782]
[1723900800816,1.43701,2609.2,2609.1,0.99956782]
[1723900801120,1.80031,2609.2,2609.1,0.99956782]
[1723900804325,1.43707,2609.1,2609.0,0.99956782]
[1723900804721,5.26987,2609.1,2609.0,0.99956782]
[1723900806828,5.26987,2609.1,2608.9,2.49487137]
[1723900806829,1.43712,2609.0,2608.9,2.49487137]
[1723900807037,1.43712,2609.0,2608.9,2.91619987]
[1723900807338,0.3633,2609.2,2608.9,1.91663205]
[1723900807630,1.43707,2609.1,2609.0,0.99974471]
[1723900808031,5.26987,2609.1,2609.0,0.99974471]
[1723900809237,1.43707,2609.1,2609.0,2.91624117]
[1723900810933,0.3633,2609.2,2609.0,2.91624117]
[1723900811125,0.3633,2609.2,2609.1,3.41171465]
[1723900811435,0.3633,2609.2,2609.1,1.9164111]
[1723900811631,0.3633,2609.2,2609.1,2.91588843]
[1723900811835,0.3633,2609.2,2609.1,3.41171465]
[1723900813330,0.3633,2609.2,2609.1,4.84878465]
[1723900813638,0.3633,2609.2,2609.1,4.84869763]
[1723900814133,0.3633,2609.2,2609.1,3.41162763]
[1723900814436,0.3633,2609.2,2609.1,2.91570493]
[1723900814835,0.3633,2609.2,2609.1,0.99938085]
[1723900815342,0.3633,2609.2,2609.1,2.91580124]
[1723900815640,0.3633,2609.2,2609.1,3.41172394]
[1723900816230,0.3633,2609.2,2609.1,8.68159394]
[1723900816440,0.3633,2609.2,2609.1,7.24452394]
[1723900816739,0.3633,2609.2,2609.1,2.91564701]
[1723900817339,0.3633,2609.2,2609.1,0.99929563]
[1723900817838,0.3633,2609.2,2609.1,2.91568993]
[1723900818425,0.3633,2609.2,2609.1,1.9163943]
[1723900818827,0.3633,2609.2,2609.1,3.41169785]
[1723900819238,0.7312,2609.3,2609.1,3.41169785]
[1723900819443,2.16816,2609.3,2609.2,0.9992424]
[1723900819828,3.27216,2609.3,2609.2,0.9992424]
[1723900821935,1.8352,2609.3,2609.2,0.9992424]
[1723900822246,3.27216,2609.3,2609.2,2.91554028]
[1723900822648,3.27216,2609.3,2609.2,0.9992424]
[1723900823143,4.70912,2609.3,2609.2,0.9992424]
[1723900823348,1.43707,2609.1,2608.9,0.9992424]
[1723900823653,1.43718,2608.9,2608.8,0.9992424]
[1723900824149,1.43723,2608.8,2608.7,0.9992424]
[1723900824332,3.29173,2608.8,2608.7,0.9992424]
[1723900824837,1.43729,2608.7,2608.6,0.9992424]
[1723900825239,1.43729,2608.7,2608.6,2.91613396]
[1723900825533,1.43729,2608.7,2608.6,3.41219511]
[1723900825846,0.7505,2608.8,2608.6,4.84952511]
[1723900826041,0.7505,2608.8,2608.7,2.91672343]
[1723900826242,0.7505,2608.8,2608.7,1.91689156]
[1723900826438,0.7505,2608.8,2608.7,0.99992175]
[1723900826644,0.7505,2608.8,2608.7,2.91657231]
[1723900827249,0.7505,2608.8,2608.7,2.91673835]
[1723900827443,0.7505,2608.8,2608.7,2.91676334]
[1723900828045,0.7505,2608.8,2608.7,2.91675513]
[1723900828351,0.7505,2608.8,2608.7,3.4120356]
[1723900828549,0.7505,2608.8,2608.7,4.8493256]
[1723900828847,0.7505,2608.8,2608.7,1.91673205]
[1723900829752,0.7505,2608.8,2608.7,3.35402205]
[1723900829950,0.7505,2608.8,2608.7,5.34782671]
[1723900830340,0.3583,2609.0,2608.8,1.43723]
[1723900830546,0.3583,2609.0,2608.9,1.91673205]
[1723900830753,0.3583,2609.0,2608.9,3.41677609]
[1723900831246,0.3583,2609.0,2608.9,1.91673205]
[1723900831247,1.79542,2609.0,2608.9,1.91673205]
[1723900831452,1.79542,2609.0,2608.9,3.41677609]
[1723900831648,1.79542,2609.0,2608.9,1.91673205]
[1723900831852,0.3583,2609.0,2608.9,2.91678869]
[1723900832153,0.3583,2609.0,2608.9,3.41677609]
[1723900832852,0.3583,2609.0,2608.9,1.91673205]
[1723900833249,0.3583,2609.0,2608.9,3.41677609]
[1723900833643,1.79542,2609.0,2608.9,1.91673205]
[1723900834049,1.79542,2609.0,2608.9,2.91676247]
[1723900834246,0.3583,2609.0,2608.9,2.91676247]
[1723900834552,0.3583,2609.0,2608.9,2.91668574]
[1723900834748,1.79542,2609.0,2608.9,1.91673205]
[1723900835247,0.3583,2609.0,2608.9,2.91669269]
[1723900836155,0.3435,2609.1,2608.9,5.12453205]
[1723900836156,1.43709,2609.1,2608.9,5.12453205]
[1723900836357,1.79409,2609.1,2609.0,3.41636392]
[1723900836953,1.79409,2609.1,2609.0,3.41613299]
[1723900837657,3.2078,2609.7,2609.0,3.41613299]
[1723900837658,4.113,2609.6,2609.1,1.43707]
[1723900837844,1.0668,2609.6,2609.3,0.99978643]
[1723900838045,2.50362,2609.6,2609.4,2.91598531]
[1723900838250,2.50362,2609.6,2609.5,0.99978643]
[1723900838449,2.50362,2609.6,2609.4,0.99978643]
[1723900838855,2.50362,2609.6,2609.5,0.99978643]
[1723900839954,1.0668,2609.6,2609.5,2.9159218]
[1723900840452,1.0668,2609.6,2609.5,0.99978643]
[1723900840854,9.236e-05,2609.8,2609.5,7.18493952]
[1723900841052,9.236e-05,2609.8,2609.7,0.99877003]
[1723900841252,9.236e-05,2609.8,2609.7,1.91588722]
[1723900841459,9.236e-05,2609.8,2609.7,7.18456794]
[1723900841656,9.236e-05,2609.8,2609.7,9.1783726]
[1723900841852,9.236e-05,2609.8,2609.7,18.00971193]
[1723900842049,0.00574889,2610.0,2609.8,1.43664]
[1723900842353,0.00574889,2610.0,2609.9,2.27422794]
[1723900842558,0.00574889,2610.0,2609.9,6.97859841]
[1723900842857,0.00574889,2610.0,2609.9,10.80979841]
[1723900843057,0.00856564,2610.0,2609.9,10.80979841]
[1723900843249,0.00856564,2610.0,2609.9,10.31043858]
[1723900843447,0.00856564,2610.0,2609.9,8.39461064]
[1723900843655,0.00856564,2610.0,2609.9,9.31312815]
[1723900844267,0.00856564,2610.0,2609.9,8.39418137]
[1723900844759,0.00856564,2610.0,2609.9,7.3974]
[1723900845164,0.00856564,2610.0,2609.9,8.39418137]
[1723900845361,0.00856564,2610.0,2609.9,9.83081137]
[1723900845554,0.00856564,2610.0,2609.9,12.24620457]
[1723900846051,0.00856564,2610.0,2609.9,10.74958916]
[1723900846563,0.00856564,2610.0,2609.9,9.82985057]
[1723900846762,0.00856564,2610.0,2609.9,8.39322057]
[1723900847151,0.00856564,2610.0,2609.9,3.2078]
[1723900847462,0.38596564,2610.0,2609.9,3.2078]
[1723900848059,0.38596564,2610.0,2609.9,4.64443]
[1723900848252,0.00856564,2610.0,2609.9,8.47563]
[1723900849468,0.00856564,2610.0,2609.9,9.47145057]
[1723900849956,0.00856564,2610.0,2609.9,14.47145057]
[1723900850463,0.00856564,2610.0,2609.9,9.47145057]
[1723900851361,0.00856564,2610.0,2609.9,8.47563]
[1723900853856,0.00856564,2610.0,2609.9,4.64443]
[1723900854267,0.00856564,2610.0,2609.9,3.2078]
[1723900854867,0.38336564,2610.0,2609.9,3.2078]
[1723900855369,0.38336564,2610.0,2609.9,4.64443]
[1723900855762,0.00856564,2610.0,2609.9,8.47563]
[1723900861768,0.00856564,2610.0,2609.9,4.64443]
[1723900863970,1.11156564,2610.0,2609.9,4.64443]
[1723900867576,4.94276564,2610.0,2609.6,3.56134889]
[1723900867781,4.94276564,2610.0,2609.6,1.44253889]
[1723900867782,2.53971,2609.8,2609.6,1.44253889]
[1723900868077,1.103,2609.8,2609.7,1.43674]
[1723900868273,1.103,2609.8,2609.6,0.00574889]
[1723900868471,1.103,2609.8,2609.6,4.65029889]
[1723900868672,1.103,2609.8,2609.7,1.43674]
[1723900868981,3.63433,2609.9,2609.7,1.43671]
[1723900870367,6.02312245,2613.5,2609.7,1.43671]
[1723900870368,3.2078,2611.5,2609.8,13.89572515]
[1723900870570,1.0563,2611.3,2611.2,1.43591]
[1723900870771,1.0563,2611.3,2611.1,1.43595]
[1723900870976,1.0563,2611.3,2611.0,3.2078]
[1723900871174,3.2078,2611.5,2611.2,1.43591]
[1723900871374,0.003549,2611.5,2611.4,1.103]
[1723900871777,0.003549,2611.5,2611.3,1.103]
[1723900871970,0.003549,2611.5,2611.2,0.00346906]
[1723900874174,0.36244889,2611.6,2611.4,4.6436]
[1723900874367,0.36244889,2611.6,2611.5,1.43575]
[1723900875377,0.36652613,2611.6,2611.5,1.43575]
[1723900875974,0.36652613,2611.6,2611.4,4.64358]
[1723900877080,0.36652613,2611.6,2611.5,1.43575]
[1723900878478,0.00982613,2611.6,2611.5,1.43575]
[1723900879182,0.00397556,2611.6,2611.5,10.62605]
[1723900879983,5.56e-06,2611.6,2611.5,12.0618]
[1723900880275,0.3594,2612.3,2612.2,1.43536]
[1723900880479,0.3594,2612.3,2612.2,4.64316]
[1723900881278,0.00402164,2612.3,2612.2,4.64316]
[1723900882078,0.00012507,2612.3,2612.2,4.64316]
[1723900882780,0.00012507,2612.3,2612.2,3.2078]
[1723900883379,0.00012507,2612.3,2612.2,4.64316]
[1723900883577,0.00012507,2612.3,2612.2,3.2078]
[1723900883778,3.82812507,2612.3,2612.2,3.2078]
[1723900884080,5.26343507,2612.3,2612.2,3.2078]
[1723900884680,3.82812507,2612.3,2612.2,3.2078]
[1723900885082,5.26343507,2612.3,2612.2,3.2078]
[1723900886184,3.82812507,2612.3,2612.2,3.2078]
[1723900886691,0.00012507,2612.3,2612.2,3.2078]
[1723900887185,0.00012507,2612.3,2612.2,4.64316]
[1723900887979,0.00012507,2612.3,2612.2,8.47116]
[1723900889481,0.00012507,2612.3,2612.2,4.64316]
[1723900890584,0.00012507,2612.3,2612.2,3.2078]
[1723900890891,0.00012507,2612.3,2612.2,4.64316]
[1723900891385,0.00012507,2612.3,2612.2,3.2078]
[1723900891585,0.00012507,2612.3,2612.2,4.64316]
[1723900891788,0.00012507,2612.3,2612.2,3.2078]
[1723900892290,1.43543507,2612.3,2612.2,3.2078]
[1723900892779,0.00012507,2612.3,2612.2,3.2078]
[1723900893279,0.00012507,2612.3,2612.2,4.64316]
[1723900893680,0.00012507,2612.3,2612.2,3.2078]
[1723900894085,1.43543507,2612.3,2612.2,3.2078]
[1723900894281,5.26343507,2612.3,2612.2,3.2078]
[1723900895383,10.26343507,2612.3,2612.2,3.2078]
[1723900896186,11.69874507,2612.3,2612.2,3.2078]
[1723900896687,1.43536,2612.2,2611.8,3.2078]
[1723900896878,1.43561,2611.8,2611.5,10.00451]
[1723900897293,0.3666,2611.7,2611.5,10.00451]
[1723900897981,0.3666,2611.7,2611.6,1.43569]
[1723900898696,0.3666,2611.7,2611.5,10.00452]
[1723900898894,0.3666,2611.7,2611.5,8.5688]
[1723900899089,0.3666,2611.7,2611.6,1.43569]
[1723900900991,1.43551,2612.0,2611.7,1.43562]
[1723900901695,1.43551,2612.0,2611.8,3.2078]
[1723900901885,1.79174,2612.1,2611.8,4.64336]
[1723900902087,1.43548,2612.0,2611.8,4.64336]
[1723900902397,1.79176,2612.1,2611.8,4.64338]
[1723900902899,1.43549,2612.0,2611.8,3.2078]
[1723900903296,1.43549,2612.0,2611.8,4.64338]
[1723900903492,1.43549,2612.0,2611.8,3.2078]
[1723900905806,1.43549,2612.0,2611.8,4.64338]
[1723900906306,1.79174,2612.1,2611.8,4.64338]
[1723900906609,1.43548,2612.0,2611.9,0.7181]
[1723900907308,0.3563,2612.1,2611.9,0.7181]
[1723900907606,0.3563,2612.1,2612.0,1.43548]
[1723900908309,1.43545507,2612.3,2611.9,0.7181]
[1723900908605,1.43545507,2612.3,2612.1,3.2078]
[1723900908907,1.43537,2612.2,2612.1,3.2078]
[1723900909906,5.26337,2612.2,2612.1,3.2078]
[1723900911608,1.43537,2612.2,2612.1,3.2078]
[1723900911812,0.00012507,2612.3,2612.1,3.2078]
[1723900911999,1.43537,2612.2,2612.1,3.2078]
[1723900913099,1.4357,2611.6,2611.5,6.35311705]
[1723900913302,1.43549,2612.0,2611.4,1.43578]
[1723900913504,1.43566,2611.7,2611.5,1.43575]
[1723900913722,5.26446,2611.7,2611.5,1.43575]
[1723900914102,3.8288,2611.7,2611.3,5.33703]
[1723900914299,1.067,2611.9,2611.3,5.33703]
[1723900914300,1.43574,2611.6,2611.3,5.33703]
[1723900914702,0.3686,2611.5,2611.3,5.33703]
[1723900914907,0.3686,2611.5,2611.4,1.43581]
[1723900915103,1.4356,2611.8,2611.5,1.43571]
[1723900915408,1.43565,2611.7,2611.5,3.2078]
[1723900916309,1.43565,2611.7,2611.6,0.99211705]
[1723900916613,1.0804,2611.9,2611.5,4.19991705]
[1723900916806,1.43566,2611.7,2611.5,4.19991705]
[1723900917007,1.43564,2611.7,2611.6,0.99211705]
[1723900917210,1.43561,2611.8,2611.6,0.99211705]
[1723900917609,1.43564,2611.7,2611.5,5.63564705]
[1723900917808,1.43564,2611.7,2611.5,4.19991705]
[1723900918212,1.4357,2611.6,2611.5,4.19991705]
[1723900918412,1.43575,2611.5,2611.4,0.99211705]
[1723900918716,1.43581,2611.4,2611.3,0.99211705]
[1723900918903,4.1709,2611.5,2611.2,4.20338611]
[1723900918904,1.43586,2611.3,2611.2,4.20338611]
[1723900919103,1.43586,2611.3,2611.2,6.11812809]
[1723900919306,1.43586,2611.3,2611.2,3.21126906]
[1723900920311,1.43586,2611.3,2611.2,0.00346906]
[1723900920612,6.70132,2611.3,2611.2,0.00346906]
[1723900921205,5.26546,2611.3,2611.2,0.00346906]
[1723900921613,1.43596,2611.2,2611.0,0.961335]
[1723900921913,0.7114,2611.4,2610.8,6.14048047]
[1723900921914,1.43586,2611.3,2610.8,6.14048047]
[1723900922118,1.43606,2611.0,2610.8,6.14048047]
[1723900922507,1.78431,2611.1,2610.8,4.64391]
[1723900922707,0.00574889,2611.2,2610.8,3.21167472]
[1723900922913,0.00574889,2611.2,2610.9,3.41141717]
[1723900923226,0.00574889,2611.2,2610.9,1.43605]
[1723900923413,1.44167889,2611.2,2611.0,1.436]
[1723900924604,0.00574889,2611.2,2611.0,1.436]
[1723900924808,1.43598,2611.1,2610.9,1.43605]
[1723900925210,1.44169889,2611.2,2610.9,1.43605]
[1723900925413,1.43599,2611.1,2610.9,1.43605]
[1723900925610,1.44169889,2611.2,2611.0,1.43602]
[1723900925917,0.00574889,2611.2,2611.0,1.43602]
[1723900926118,0.00574889,2611.2,2611.1,0.7116]
[1723900926309,1.44166889,2611.2,2611.1,0.7116]
[1723900927108,1.44166889,2611.2,2611.1,0.3535]
[1723900927321,1.43599,2611.1,2610.9,1.43605]
[1723900927524,1.59859,2611.1,2610.9,1.43605]
[1723900928116,1.43605,2611.0,2610.8,3.93157472]
[1723900928417,1.80118,2610.9,2610.8,0.00387472]
[1723900928622,2.17638,2610.9,2610.8,0.00387472]
[1723900930217,7.44286,2610.9,2610.8,0.00387472]
[1723900930621,12.44286,2610.9,2610.8,0.00387472]
[1723900931613,13.87894,2610.9,2610.8,0.00387472]
[1723900932225,2.87228,2610.8,2610.7,0.00574889]
[1723900932523,6.70268,2610.8,2610.7,0.00574889]
[1723900932725,11.70268,2610.8,2610.7,0.00574889]
[1723900933221,11.70268,2610.8,2610.7,0.00891764]
[1723900933222,1.43614,2610.8,2610.7,0.00891764]
[1723900933617,0.7403,2610.9,2610.7,0.00891764]
[1723900933618,2.17641,2610.9,2610.7,0.00891764]
[1723900934219,2.17642,2610.9,2610.7,0.00891764]
[1723900935031,0.3626,2611.1,2610.7,0.00891764]
[1723900935213,1.7986,2611.1,2610.8,1.43611]
[1723900935417,2.1429,2611.1,2610.8,1.43611]
[1723900935723,2.1429,2611.1,2610.7,0.00891764]
[1723900935724,0.7069,2611.1,2610.7,0.00891764]
[1723900935915,1.43614,2610.8,2610.7,0.00891764]
[1723900936317,1.43614,2610.8,2610.7,3.21671764]
[1723900936725,5.26654,2610.8,2610.7,0.00891764]
[1723900937324,1.43614,2610.8,2610.7,0.00891764]
[1723900937624,1.43612,2610.9,2610.7,0.00891764]
[1723900937828,1.77752,2610.9,2610.7,0.00891764]
[1723900939325,1.77752,2610.9,2610.7,1.44508764]
[1723900939530,1.43606,2611.0,2610.7,1.44508764]
[1723900939730,1.43608,2610.9,2610.8,0.366]